{"text_format":"2","workbook":"xlsx","n_sheets":2,"sheets":["Arvonmäärityslaskuri","Arvonmääritys VEROTTAJALLE "],"not_rendered":{"charts":0,"images":3,"macros":0,"external_links":0,"defined_names":3,"comments":2,"pivot_tables":0},"unopened":[],"bounds":{"document_bytes":16777216,"sheet_cells":100000,"run_cost":"one","rows_first":2000,"rows_last":500,"rows_between":2000,"halvings":0,"cell_chars":16384,"cell_head_chars":4096},"cells_cut":0,"cells_raw":0,"read":"whole","date_system":"1900"}

{"sheet":"Arvonmäärityslaskuri","index":0,"n_rows":95,"n_cols":14,"rows_kept":95,"cut":false,"hidden":false,"merged":[[86,2,86,3],[59,2,59,4],[60,2,60,4],[61,2,61,4],[62,2,62,4],[63,2,63,4],[82,2,82,4],[65,2,65,4],[42,1,42,5],[36,1,36,3],[20,1,20,3],[45,1,45,5],[27,1,27,2],[24,1,24,2],[39,1,39,5],[47,1,47,5],[44,1,44,4],[85,2,85,3],[84,2,84,3],[57,1,57,6],[53,2,53,4],[54,2,54,4],[55,2,55,4],[41,1,41,5],[7,8,8,8],[32,1,32,2],[35,1,35,3],[29,1,29,2],[10,4,10,6],[11,1,11,3],[10,1,10,3],[19,1,19,3],[12,1,12,3],[17,1,17,3],[14,1,14,3],[18,1,18,2],[15,1,15,2],[25,1,25,2],[34,1,34,2],[3,1,3,2],[30,1,30,2],[1,2,1,5]]}
[]
[null,null,"YT24 Yrityksen arvonmäärityslaskuri "]
[null,"Yrityksen nimi ",null,null,"Y-tunnus"]
[]
[]
[]
[]
[{"$nulls":8},"OHJE"]
[null,"Kolmen viimeisen tilikauden tiedot"]
[]
[{"$nulls":4},"Toteutunut tilikausi",null,null,null,"Muistiinpanot"]
[null," Tilikauden päättymisajankohta",null,null,"X/20XX","X/20XX","X/20XX"]
[null," Tilikauden pituus (kk)",null,null,12,12,12]
[null," 1. Liikevaihto tilinpäätöksessä",null,null,0,0,0]
[null,"1.1 Oikaistu liikevaihto",null,null,{"$f":"IF(E14+E16=E14,0,E14+E16)","v":0},{"$f":"IF(F14+F16=F14,0,F14+F16)","v":0},{"$f":"IF(G14+G16=G14,0,G14+G16)","v":0}]
[null,"Liikevaihdon oikaisut",null,null,0,0,0]
[null," 2. Liiketoiminnan muut tuotot tilinpäätöksessä",null,null,0,0,0]
[null," 2.1. Liiketoiminnan muut tuotot oikaistu",null,null,{"$f":"IF(E17+E19=E17,0,E17+E19)","v":0},{"$f":"IF(F17+F19=F17,0,F17+F19)","v":0},{"$f":"IF(G17+G19=G17,0,G17+G19)","v":0}]
[null,"Liiketoiminnan muut tuotot, oikaistu",null,null,0,0,0]
[null," 3. Liiketoiminnan tuotot yhteensä tilinpäätöksessä",null,null,{"$f":"E14+E17","v":0},{"$f":"F14+F17","v":0},0]
[null,"3.1 Liiketoiminnan tuotot yhteensä oikaistu",null,null,{"$f":"E15+E18","v":0},{"$f":"F15+F18","v":0},0]
[null," 4. Aineet, tarvikkeet ja tavarat tilinpäätöksessä",null,null,{"$f":"E23+E24","v":0},{"$f":"F23+F24","v":0},0]
[null,"Ostot tilikauden aikana tilinpäätöksessä",null,null,0,0,0]
[null,"Varaston lisäys/vähennys tilinpäätöksessä",null,"+/-",0,0,0]
[null,"Ostot tilikauden aikana, oikaisut",null,"+/-",0,0,0]
[null,"Varaston lisäys/vähennys, oikaisut",null,"+/-",0,0,0]
[null," 5. Ulkopuoliset palvelut tilinpäätöksessä                       ",null,"-",0,0,0]
[null,"Ulkopuoliset palvelut oikaisut  ",null,null,0,0,0]
[null," 6. Henkilöstökulut tilinpäätöksessä                    ",null,"-",0,0,0]
[null,"Henkilöstökulujen oikaisu",null,null,0,0,0]
[{"$nulls":4},0,0,0]
[null," 7. Liiketoiminnan muut kulut tilinpäätöksessä",null,"-",0,0,0]
[null,"Liiketoiminnan muut kulut, oikaisut",null,null,0,0,0]
[null," 8. KÄYTTÖKATE TILINPÄÄTÖKSEN MUKAAN",null,null,{"$f":"E20+E22+E27+E29+E32","v":0},{"$f":"F20+F22+F27+F29+F32","v":0},0]
[null," 8.1 KÄYTTÖKATE OIKAISTU",null,null,{"$f":"E14+E16+E17+E19+E23+E24+E25+E26+E27+E28+E29+E30+E31+E32+E33","v":0},{"$f":"F14+F16+F17+F19+F23+F24+F25+F26+F27+F28+F29+F30+F31+F32+F33","v":0},0]
[null," 9. TILIKAUDEN VOITTO (TAPPIO) ",null,null,0,0,0]
[null," 9.1 TILIKAUDEN VOITTO (TAPPIO) OIKAISTU",null,null,{"$f":"IF(E36=0,0,(E35-(E34-E36)))","v":0},{"$f":"IF(F36=0,0,(F35-(F34-F36)))","v":0},0]
[null," 10. Varat (TASE Vastaavaa loppusumma tilinpäätöksessä)",{"$nulls":4},0]
[null," 10.1 Varat, oikaistu ",{"$nulls":4},{"$f":"G38+G40+G43+G41+G42","v":0}]
[null," Varoista vähennetään: pysyvät vastaavat ",{"$nulls":4},0]
[null," Varoista vähennetään: vaihto-omaisuus",{"$nulls":4},0]
[null," Varoista vähennetään: saamiset",{"$nulls":4},0]
[null," Varoista vähennetään: rahat ja pankkisaamiset",{"$nulls":4},0]
[null," 11. Velat (TASE/Pitkä- ja lyhytaikainen velka yhteensä tilinpäätöksessä)        ",null,null,null," -",0]
[null,"11.1 Velat, oikaistu         ",null,null,null," -",{"$f":"G44+G46","v":0}]
[null,"Kaupan ulkopuolelle jäävät velat",{"$nulls":4},0]
[null," 12. Nettovarallisuus = yrityksen substanssiarvo ",{"$nulls":4},{"$f":"G38+G44","v":0}]
[null," 12.1 Nettovarallisuus = yrityksen substanssiarvo oikaisun jälkeen",{"$nulls":4},{"$f":"G39+G45","v":0}]
[]
[]
[]
[]
[null,"Yrityksen laskennallinen arvo",null,null,null,"TILINPÄÄTÖS","OIKAISTU"]
[null,null," 2.1 Substanssiarvo (varat - velat)",null,null,{"$f":"G38+G44","v":0},{"$f":"G39+G45","v":0}]
[null,null," 2.2 Tuottoarvo (3 tilikauden voittojen keskiarvo/15%)",null,null,{"$f":"(E36+F36+G36)/3/0.15","v":0},{"$f":"(E37+F37+G37)/3/0.15","v":0}]
[null,null," 2.3 Käypä arvo (keskiarvo 2.1 ja 2.2)",null,null,{"$f":"SUM(F54:F55)/2","v":0},{"$f":"SUM(G54:G55)/2","v":0},{"$nulls":6},0]
[]
[null," "]
[{"$nulls":5},"TILINPÄÄTÖS","OIKAISTU"]
[null,null,"Kolmen vuoden käyttökatteen keskiarvo",null,null,{"$f":"(E34+F34+G34)/3","v":0},{"$f":"(E35+F35+G35)/3","v":0}]
[null,null,"2 x kolmen vuoden käyttökatteen keskiarvo",null,null,{"$f":"2*F$60","v":0},{"$f":"2*G$60","v":0}]
[null,null,"3 x kolmen vuoden käyttökatteen keskiarvo",null,null,{"$f":"3*F$60","v":0},{"$f":"3*G$60","v":0}]
[null,null,"4 x kolmen vuoden käyttökatteen keskiarvo",null,null,{"$f":"4*F$60","v":0},{"$f":"4*G$60","v":0}]
[null,null,"5 x kolmen vuoden käyttökatteen keskiarvo",null,null,{"$f":"5*F$60","v":0},{"$f":"5*G$60","v":0}]
[]
[null,null,"Yrityksen arvo",null,null,0]
[]
[null,"Lisätietoja"]
{"$rows_empty":13}
[null,null,"Aika ja paikka"]
[]
[]
[]
[null,null,"Laatijan nimi"]
[]
[null," "]
[]
[]
[null,"Laskelman antamien tulosten oikeellisuus ja vastuu tuloksista"]
[null,"Käyttäjä tiedostaa, että laskurin antamat hinta-arviot ovat viitteellisiä ja suuntaa-antavia, eivätkä lasketut arvot ole tae yrityskaupan hinnasta."]
[null,"Käyttäjä käyttää laskuria ja tulkitsee tuloksia omalla vastuullaan. Käytä aina lopulliseen hinnanmääritykseen ulkopuolisten asiantuntijoiden apua."]
[]
[null,"Päivitys 10.2.2026"]

{"sheet":"Arvonmääritys VEROTTAJALLE ","index":1,"n_rows":44,"n_cols":8,"rows_kept":44,"cut":false,"hidden":false,"merged":[[4,1,4,4],[37,1,37,6],[38,1,38,6],[39,1,39,6],[29,2,29,5],[30,2,30,5],[31,1,31,6],[33,1,33,4],[35,1,35,6],[36,1,36,6],[9,4,9,6],[10,1,10,3],[11,1,11,3],[14,1,14,3],[21,1,21,3],[28,2,28,5]]}
[]
[null,"YT24 Yrityksen arvonmäärityslaskuri "]
[]
[null,"Yrityksen nimi ",{"$nulls":4},"Y-tunnus"]
[null,0]
[]
[]
[null,"1. Kolmen viimeisen tilikauden tiedot"]
[]
[{"$nulls":4},"Toteutunut tilikausi"]
[null," Tilikauden päättymisajankohta",null,null,"X/20XX","X/20XX","X/20XX"]
[null," Tilikauden pituus (kk)",null,null,0,0,0]
[null," LIIKEVAIHTO",null,null,0,0,0]
[null," Liiketoiminnan muut tuotot",null,null,0,0,0]
[null," LIIKETOIMINNAN TUOTOT YHTEENSÄ",null,null,{"$f":"E13+E14","v":0},{"$f":"F13+F14","v":0},0]
[null," Aineet, tarvikkeet ja tavarat                 ",null,"-",0,0,0]
[null," Ulkopuoliset palvelut                           ",null,"-",0,0,0]
[null," Henkilöstökulut                              ",null,"-",0,0,0]
[null," Liiketoiminnan muut kulut",null,"-",0,0,0]
[null," Varaston lisäys/vähennys",null,"+/-",0,0,0]
[null," KÄYTTÖKATE",null,null,{"$f":"E15+E16+E17+E18+E19+E20","v":0},{"$f":"F15+F16+F17+F18+F19+F20","v":0},{"$f":"G15+G16+G17+G18+G19+G20","v":0}]
[null," TILIKAUDEN VOITTO (TAPPIO)",null,null,0,0,0," "]
[null," Varat (TASE Vastaavaa loppusumma)",{"$nulls":4},0," "]
[null," Velat (TASE/Pitkä- ja lyhytaikainen velka yhteensä)",null,null,null,"-",0]
[null," Nettovarallisuus = yrityksen substanssiarvo euroa",null,null,null," ",{"$f":"G23+G24","v":0}]
[]
[null,"2. Yrityksen laskennallinen arvo (euroa)"]
[]
[null,null," 2.1 Substanssiarvo (varat - velat)",null,null,null,{"$f":"G25","v":0}]
[null,null," 2.2 Tuottoarvo (3 tilikauden voittojen keskiarvo / 15%)",null,null,null,{"$f":"(E22+F22+G22)/3/0.15","v":0}]
[null,null," 2.3 Käypä arvo (substanssiarvon ja tuottoarvon keskiarvo)",null,null,null,{"$f":"SUM(G29:G30)/2","v":0}]
[null," "]
[null,"Laatija",{"$nulls":4},"Päivämäärä"]
[{"$nulls":6},"00:00:00"]
[null,"Lisätietoja"]
[]
[]
[]
[]
[]
[]
[null,"Laskelman antamien tulosten oikeellisuus ja vastuu tuloksista"]
[null,"Käyttäjä tiedostaa, että laskurin antamat hinta-arviot ovat viitteellisiä ja suuntaa-antavia, eivätkä lasketut arvot ole tae yrityskaupan hinnasta."]
[null,"Käyttäjä käyttää laskuria ja tulkitsee tuloksia omalla vastuullaan. Käytä aina lopulliseen hinnanmääritykseen ulkopuolisten asiantuntijoiden apua."]